[Event "January 9 Early 2024"]
[Site "https://www.chess.com"]
[Date "2024.01.11"]
[Round "7"]
[White "Gutkin, Ilya"]
[Black "Smirnov, Mark"]
[Result "0-1"]
[Board "150"]
[TimeControl "180+1"]
[WhiteFideId "16203470"]
[BlackFideId "13764594"]
[WhiteElo "2341"]
[BlackElo "2531"]
[WhiteTeam "GER"]
[BlackTeam "KAZ"]
[WhiteClock "0:00:11"]
[BlackClock "0:00:17"]

1. Nf3 {[%clk 0:03:00]}  Nf6 {[%clk 0:02:58]} 2. g3 {[%clk 0:03:00]}  b5 {[%clk 0:02:56]} 3. Bg2 {[%clk 0:03:00]}  Bb7 {[%clk 0:02:56]} 4. Na3 {[%clk 0:02:59]}  a6 {[%clk 0:02:54]} 5. c4 {[%clk 0:02:59]}  e6 {[%clk 0:02:54]} 6. b3 {[%clk 0:02:58]}  Bxa3 {[%clk 0:02:37]} 7. Bxa3 {[%clk 0:02:57]}  d6 {[%clk 0:02:37]} 8. O-O {[%clk 0:02:51]}  Nbd7 {[%clk 0:02:33]} 9. Qc2 {[%clk 0:02:48]}  O-O {[%clk 0:02:31]} 10. d4 {[%clk 0:02:40]}  Qe7 {[%clk 0:02:17]} 11. c5 {[%clk 0:02:34]}  Be4 {[%clk 0:02:05]} 12. Qc1 {[%clk 0:02:28]}  a5 {[%clk 0:02:02]} 13. cxd6 {[%clk 0:02:22]}  cxd6 {[%clk 0:02:02]} 14. Qf4 {[%clk 0:02:12]}  b4 {[%clk 0:01:58]} 15. Bb2 {[%clk 0:02:12]}  Rfc8 {[%clk 0:01:52]} 16. Rfc1 {[%clk 0:02:12]}  Nb6 {[%clk 0:01:46]} 17. Rxc8+ {[%clk 0:02:01]}  Rxc8 {[%clk 0:01:47]} 18. Rc1 {[%clk 0:02:01]}  Rxc1+ {[%clk 0:01:41]} 19. Qxc1 {[%clk 0:02:02]}  Qd7 {[%clk 0:01:39]} 20. Bf1 {[%clk 0:01:36]}  Qc6 {[%clk 0:00:59]} 21. Qxc6 {[%clk 0:01:34]}  Bxc6 {[%clk 0:01:00]} 22. Nd2 {[%clk 0:01:32]}  Nfd5 {[%clk 0:00:55]} 23. Nc4 {[%clk 0:01:22]}  Nxc4 {[%clk 0:00:47]} 24. bxc4 {[%clk 0:01:23]}  Nc3 {[%clk 0:00:43]} 25. a3 {[%clk 0:01:23]}  Na4 {[%clk 0:00:38]} 26. axb4 {[%clk 0:01:20]}  axb4 {[%clk 0:00:31]} 27. Bc1 {[%clk 0:00:51]}  b3 {[%clk 0:00:28]} 28. f3 {[%clk 0:00:23]}  b2 {[%clk 0:00:21]} 29. Bxb2 {[%clk 0:00:23]}  Nxb2 {[%clk 0:00:22]} 30. e4 {[%clk 0:00:24]}  Bb7 {[%clk 0:00:21]} 31. c5 {[%clk 0:00:15]}  dxc5 {[%clk 0:00:21]} 32. dxc5 {[%clk 0:00:15]}  Na4 {[%clk 0:00:21]} 33. Kf2 {[%clk 0:00:14]}  Nxc5 {[%clk 0:00:19]} 34. Ke3 {[%clk 0:00:15]}  Ba6 {[%clk 0:00:20]} 35. Bg2 {[%clk 0:00:14]}  e5 {[%clk 0:00:20]} 36. f4 {[%clk 0:00:14]}  f6 {[%clk 0:00:20]} 37. g4 {[%clk 0:00:13]}  exf4+ {[%clk 0:00:17]} 38. Kxf4 {[%clk 0:00:13]}  Nd3+ {[%clk 0:00:18]} 39. Ke3 {[%clk 0:00:12]}  Ne5 {[%clk 0:00:17]} 40. h4 {[%clk 0:00:11]}  Nxg4+ {[%clk 0:00:17]} 0-1

[Event "January 9 Early 2024"]
[Site "https://www.chess.com"]
[Date "2024.01.11"]
[Round "7"]
[White "Haug, Havard"]
[Black "Salem, A.R. Saleh"]
[Result "0-1"]
[Board "152"]
[TimeControl "180+1"]
[WhiteFideId "1547887"]
[BlackFideId "9301348"]
[WhiteElo "2787"]
[BlackElo "2989"]
[WhiteTeam "NOR"]
[BlackTeam "UAE"]
[WhiteClock "0:00:02"]
[BlackClock "0:00:29"]

1. e4 {[%clk 0:03:00]}  c5 {[%clk 0:02:57]} 2. c3 {[%clk 0:03:01]}  d6 {[%clk 0:02:53]} 3. d4 {[%clk 0:03:00]}  Nf6 {[%clk 0:02:52]} 4. Bd3 {[%clk 0:02:59]}  g6 {[%clk 0:02:52]} 5. Nf3 {[%clk 0:02:59]}  Bg7 {[%clk 0:02:52]} 6. O-O {[%clk 0:02:59]}  O-O {[%clk 0:02:53]} 7. h3 {[%clk 0:02:57]}  Nfd7 {[%clk 0:02:53]} 8. Re1 {[%clk 0:02:56]}  Nc6 {[%clk 0:02:53]} 9. Be3 {[%clk 0:02:55]}  Rb8 {[%clk 0:02:52]} 10. Qd2 {[%clk 0:02:54]}  b5 {[%clk 0:02:52]} 11. Na3 {[%clk 0:02:52]}  b4 {[%clk 0:02:50]} 12. Nc2 {[%clk 0:02:52]}  a5 {[%clk 0:02:49]} 13. Rad1 {[%clk 0:02:44]}  Qc7 {[%clk 0:02:38]} 14. Bh6 {[%clk 0:02:39]}  e5 {[%clk 0:02:19]} 15. Qg5 {[%clk 0:02:28]}  Qd8 {[%clk 0:02:04]} 16. Qc1 {[%clk 0:02:16]}  Qe7 {[%clk 0:02:00]} 17. h4 {[%clk 0:02:07]}  Nf6 {[%clk 0:01:54]} 18. Bg5 {[%clk 0:01:54]}  bxc3 {[%clk 0:01:47]} 19. bxc3 {[%clk 0:01:53]}  cxd4 {[%clk 0:01:48]} 20. cxd4 {[%clk 0:01:53]}  Bg4 {[%clk 0:01:49]} 21. dxe5 {[%clk 0:01:31]}  dxe5 {[%clk 0:01:31]} 22. Ne3 {[%clk 0:01:12]}  Bxf3 {[%clk 0:01:32]} 23. Qxc6 {[%clk 0:01:11]}  Bxd1 {[%clk 0:01:23]} 24. Nd5 {[%clk 0:01:10]}  Qe6 {[%clk 0:01:19]} 25. Bxf6 {[%clk 0:00:51]}  Bg4 {[%clk 0:01:07]} 26. Bxg7 {[%clk 0:00:27]}  Qxc6 {[%clk 0:01:01]} 27. Ne7+ {[%clk 0:00:22]}  Kxg7 {[%clk 0:01:01]} 28. Nxc6 {[%clk 0:00:23]}  Rb2 {[%clk 0:01:01]} 29. Nxa5 {[%clk 0:00:13]}  Rd8 {[%clk 0:00:59]} 30. Bf1 {[%clk 0:00:08]}  Be6 {[%clk 0:00:54]} 31. Nc4 {[%clk 0:00:05]}  Bxc4 {[%clk 0:00:49]} 32. Bxc4 {[%clk 0:00:06]}  Rdd2 {[%clk 0:00:45]} 33. Rf1 {[%clk 0:00:06]}  Rb4 {[%clk 0:00:45]} 34. Bd5 {[%clk 0:00:05]}  f5 {[%clk 0:00:43]} 35. Rc1 {[%clk 0:00:02]}  fxe4 {[%clk 0:00:36]} 36. Rc7+ {[%clk 0:00:03]}  Kf8 {[%clk 0:00:36]} 37. Bb3 {[%clk 0:00:02]}  e3 {[%clk 0:00:29]} 38. Rf7+ {[%clk 0:00:02]}  Ke8 {[%clk 0:00:29]} 0-1

[Event "January 9 Early 2024"]
[Site "https://www.chess.com"]
[Date "2024.01.11"]
[Round "7"]
[White "Feliz Dotel, Dewar Bienvenido"]
[Black "Zhukov, Maksim"]
[Result "1-0"]
[Board "159"]
[TimeControl "180+1"]
[WhiteFideId "6402801"]
[BlackFideId "34181790"]
[WhiteElo "2159"]
[BlackElo "2315"]
[WhiteTeam "DOM"]
[BlackTeam "RUS"]
[WhiteClock "0:00:11"]
[BlackClock "0:00:01"]

1. Nf3 {[%clk 0:02:59]}  Nf6 {[%clk 0:02:59]} 2. c4 {[%clk 0:02:58]}  e6 {[%clk 0:02:58]} 3. g3 {[%clk 0:02:54]}  a6 {[%clk 0:02:58]} 4. Bg2 {[%clk 0:02:54]}  b5 {[%clk 0:02:59]} 5. cxb5 {[%clk 0:02:47]}  axb5 {[%clk 0:02:59]} 6. Nd4 {[%clk 0:02:45]}  d5 {[%clk 0:02:56]} 7. Nxb5 {[%clk 0:02:42]}  c6 {[%clk 0:02:57]} 8. N5c3 {[%clk 0:02:41]}  h5 {[%clk 0:02:56]} 9. h4 {[%clk 0:02:40]}  c5 {[%clk 0:02:54]} 10. d4 {[%clk 0:02:31]}  cxd4 {[%clk 0:02:53]} 11. Qxd4 {[%clk 0:02:30]}  Nc6 {[%clk 0:02:53]} 12. Qd1 {[%clk 0:02:27]}  Ba6 {[%clk 0:02:52]} 13. O-O {[%clk 0:02:26]}  Bc5 {[%clk 0:02:52]} 14. a3 {[%clk 0:02:15]}  Qb6 {[%clk 0:02:19]} 15. Na4 {[%clk 0:02:03]}  Bxf2+ {[%clk 0:01:14]} 16. Rxf2 {[%clk 0:01:58]}  Qa7 {[%clk 0:01:13]} 17. b4 {[%clk 0:01:46]}  Ng4 {[%clk 0:01:10]} 18. Nc5 {[%clk 0:01:43]}  Nxf2 {[%clk 0:01:04]} 19. Kxf2 {[%clk 0:01:44]}  Bxe2 {[%clk 0:00:55]} 20. Qxe2 {[%clk 0:01:36]}  Nxb4 {[%clk 0:00:52]} 21. Be3 {[%clk 0:01:29]}  Qc7 {[%clk 0:00:38]} 22. axb4 {[%clk 0:00:32]}  Rxa1 {[%clk 0:00:36]} 23. Qb2 {[%clk 0:00:31]}  Ra8 {[%clk 0:00:26]} 24. Qxg7 {[%clk 0:00:31]}  Rf8 {[%clk 0:00:22]} 25. Nd2 {[%clk 0:00:25]}  Ra2 {[%clk 0:00:17]} 26. Kg1 {[%clk 0:00:17]}  d4 {[%clk 0:00:13]} 27. Bf4 {[%clk 0:00:17]}  e5 {[%clk 0:00:12]} 28. Bxe5 {[%clk 0:00:17]}  Qc8 {[%clk 0:00:10]} 29. Bd6 {[%clk 0:00:13]}  Ra1+ {[%clk 0:00:03]} 30. Kh2 {[%clk 0:00:12]}  Qe6 {[%clk 0:00:01]} 31. Qxf8# {[%clk 0:00:11]} 1-0

[Event "January 9 Early 2024"]
[Site "https://www.chess.com"]
[Date "2024.01.11"]
[Round "7"]
[White "Zhigalko, Sergei"]
[Black "Ranaldi, Lucas"]
[Result "1/2-1/2"]
[Board "160"]
[TimeControl "180+1"]
[WhiteFideId "13502956"]
[BlackFideId "1519484"]
[WhiteElo "2913"]
[BlackElo "2711"]
[WhiteTeam "BLR"]
[BlackTeam "NOR"]
[WhiteClock "0:00:09"]
[BlackClock "0:00:12"]

1. e4 {[%clk 0:03:00]}  c6 {[%clk 0:02:53]} 2. d4 {[%clk 0:03:00]}  d5 {[%clk 0:02:54]} 3. e5 {[%clk 0:03:01]}  Bf5 {[%clk 0:02:53]} 4. Nf3 {[%clk 0:03:01]}  e6 {[%clk 0:02:54]} 5. Be2 {[%clk 0:03:02]}  c5 {[%clk 0:02:54]} 6. Be3 {[%clk 0:03:02]}  cxd4 {[%clk 0:02:54]} 7. Nxd4 {[%clk 0:03:02]}  Ne7 {[%clk 0:02:55]} 8. Nd2 {[%clk 0:03:02]}  Nbc6 {[%clk 0:02:53]} 9. N2f3 {[%clk 0:03:03]}  Be4 {[%clk 0:02:50]} 10. O-O {[%clk 0:03:03]}  Bxf3 {[%clk 0:02:46]} 11. Nxf3 {[%clk 0:03:04]}  Ng6 {[%clk 0:02:43]} 12. c4 {[%clk 0:03:04]}  d4 {[%clk 0:02:36]} 13. Nxd4 {[%clk 0:03:00]}  Ngxe5 {[%clk 0:02:35]} 14. Nxc6 {[%clk 0:02:29]}  Nxc6 {[%clk 0:02:36]} 15. Bf3 {[%clk 0:02:27]}  Qc7 {[%clk 0:02:04]} 16. Be4 {[%clk 0:02:06]}  Bd6 {[%clk 0:02:03]} 17. Qh5 {[%clk 0:02:06]}  g6 {[%clk 0:01:58]} 18. Qh6 {[%clk 0:01:59]}  Bf8 {[%clk 0:01:23]} 19. Qh4 {[%clk 0:01:58]}  Be7 {[%clk 0:01:21]} 20. Bxc6+ {[%clk 0:01:47]}  Qxc6 {[%clk 0:01:20]} 21. Qd4 {[%clk 0:01:47]}  O-O {[%clk 0:00:58]} 22. Bh6 {[%clk 0:01:44]}  e5 {[%clk 0:00:58]} 23. Qxe5 {[%clk 0:01:27]}  Bf6 {[%clk 0:00:58]} 24. Qf4 {[%clk 0:01:12]}  Bxb2 {[%clk 0:00:43]} 25. Bxf8 {[%clk 0:00:56]}  Bxa1 {[%clk 0:00:43]} 26. Rxa1 {[%clk 0:00:44]}  Rxf8 {[%clk 0:00:41]} 27. h4 {[%clk 0:00:44]}  Rc8 {[%clk 0:00:40]} 28. Rd1 {[%clk 0:00:35]}  Qc7 {[%clk 0:00:31]} 29. Qe4 {[%clk 0:00:27]}  h5 {[%clk 0:00:25]} 30. Rd5 {[%clk 0:00:19]}  Qxc4 {[%clk 0:00:23]} 31. Rd8+ {[%clk 0:00:15]}  Kh7 {[%clk 0:00:23]} 32. Qxc4 {[%clk 0:00:11]}  Rxc4 {[%clk 0:00:23]} 33. Rd7 {[%clk 0:00:12]}  Kg7 {[%clk 0:00:23]} 34. Rxb7 {[%clk 0:00:10]}  Ra4 {[%clk 0:00:23]} 35. g3 {[%clk 0:00:09]}  Rxa2 {[%clk 0:00:24]} 36. Kg2 {[%clk 0:00:09]}  a5 {[%clk 0:00:24]} 37. Ra7 {[%clk 0:00:10]}  a4 {[%clk 0:00:24]} 38. Kf3 {[%clk 0:00:10]}  a3 {[%clk 0:00:24]} 39. Ke3 {[%clk 0:00:09]}  Ra1 {[%clk 0:00:24]} 40. Kf4 {[%clk 0:00:08]}  Kf6 {[%clk 0:00:13]} 41. Ra6+ {[%clk 0:00:08]}  Kg7 {[%clk 0:00:13]} 42. Ra7 {[%clk 0:00:09]}  Kf6 {[%clk 0:00:13]} 43. Ra6+ {[%clk 0:00:09]}  Kg7 {[%clk 0:00:12]} 44. Ra7 {[%clk 0:00:09]} 1/2-1/2

[Event "January 9 Early 2024"]
[Site "https://www.chess.com"]
[Date "2024.01.11"]
[Round "7"]
[White "Huschenbeth, Niclas"]
[Black "Skurikhin, Dmitrij"]
[Result "1/2-1/2"]
[Board "161"]
[TimeControl "180+1"]
[WhiteFideId "24604747"]
[BlackFideId "4161297"]
[WhiteElo "2465"]
[BlackElo "2205"]
[WhiteTeam "GER"]
[BlackTeam "RUS"]
[WhiteClock "0:00:02"]
[BlackClock "0:00:14"]

1. e4 {[%clk 0:03:00]}  c6 {[%clk 0:02:59]} 2. d4 {[%clk 0:02:59]}  d5 {[%clk 0:02:59]} 3. Nc3 {[%clk 0:03:00]}  dxe4 {[%clk 0:02:58]} 4. Nxe4 {[%clk 0:03:01]}  Bf5 {[%clk 0:02:57]} 5. Ng3 {[%clk 0:03:00]}  Bg6 {[%clk 0:02:57]} 6. h4 {[%clk 0:02:58]}  h6 {[%clk 0:02:55]} 7. Nf3 {[%clk 0:02:58]}  Nd7 {[%clk 0:02:54]} 8. Bd3 {[%clk 0:02:56]}  Bxd3 {[%clk 0:02:51]} 9. Qxd3 {[%clk 0:02:57]}  Ngf6 {[%clk 0:02:50]} 10. Bd2 {[%clk 0:02:57]}  e6 {[%clk 0:02:51]} 11. O-O-O {[%clk 0:02:57]}  Qc7 {[%clk 0:02:50]} 12. Ne4 {[%clk 0:02:46]}  O-O-O {[%clk 0:02:44]} 13. Kb1 {[%clk 0:02:44]}  Kb8 {[%clk 0:02:43]} 14. c4 {[%clk 0:02:43]}  Ka8 {[%clk 0:02:40]} 15. Bc3 {[%clk 0:02:38]}  Nxe4 {[%clk 0:02:35]} 16. Qxe4 {[%clk 0:02:39]}  Nf6 {[%clk 0:02:34]} 17. Qe2 {[%clk 0:02:26]}  Qf4 {[%clk 0:02:30]} 18. Rhe1 {[%clk 0:02:02]}  Bd6 {[%clk 0:02:27]} 19. a3 {[%clk 0:01:53]}  Bc7 {[%clk 0:02:23]} 20. Ka2 {[%clk 0:01:53]}  Rd7 {[%clk 0:02:19]} 21. Ne5 {[%clk 0:01:49]}  Bxe5 {[%clk 0:02:12]} 22. dxe5 {[%clk 0:01:50]}  Rxd1 {[%clk 0:02:11]} 23. Rxd1 {[%clk 0:01:49]}  Ne4 {[%clk 0:02:11]} 24. Be1 {[%clk 0:01:11]}  Qxe5 {[%clk 0:01:50]} 25. Qe3 {[%clk 0:00:49]}  f6 {[%clk 0:01:22]} 26. Rd7 {[%clk 0:00:33]}  Rg8 {[%clk 0:01:04]} 27. f4 {[%clk 0:00:28]}  Qf5 {[%clk 0:00:51]} 28. g4 {[%clk 0:00:28]}  Qh7 {[%clk 0:00:44]} 29. Qd4 {[%clk 0:00:17]}  b6 {[%clk 0:00:37]} 30. Re7 {[%clk 0:00:14]}  Nc5 {[%clk 0:00:34]} 31. Qd6 {[%clk 0:00:12]}  Qe4 {[%clk 0:00:30]} 32. Qc7 {[%clk 0:00:02]}  Qxc4+ {[%clk 0:00:29]} 33. Kb1 {[%clk 0:00:02]}  Qe4+ {[%clk 0:00:26]} 34. Ka2 {[%clk 0:00:01]}  Qc4+ {[%clk 0:00:26]} 35. Kb1 {[%clk 0:00:01]}  Qe4+ {[%clk 0:00:25]} 36. Ka2 {[%clk 0:00:02]}  Qd5+ {[%clk 0:00:19]} 37. Kb1 {[%clk 0:00:02]}  Qd1+ {[%clk 0:00:17]} 38. Ka2 {[%clk 0:00:02]}  Qb3+ {[%clk 0:00:17]} 39. Kb1 {[%clk 0:00:02]}  Qd3+ {[%clk 0:00:16]} 40. Ka2 {[%clk 0:00:02]}  Qc4+ {[%clk 0:00:14]} 1/2-1/2

[Event "January 9 Early 2024"]
[Site "https://www.chess.com"]
[Date "2024.01.11"]
[Round "7"]
[White "Korol, Dimitry"]
[Black "Mendez Fortes, Eduardo Jesus"]
[Result "0-1"]
[Board "167"]
[TimeControl "180+1"]
[WhiteFideId "14108003"]
[BlackFideId "3502376"]
[WhiteElo "2351"]
[BlackElo "2545"]
[WhiteTeam "UKR"]
[BlackTeam "CUB"]
[WhiteClock "0:00:02"]
[BlackClock "0:00:18"]

1. d4 {[%clk 0:02:57]}  Nf6 {[%clk 0:02:58]} 2. c4 {[%clk 0:02:56]}  e6 {[%clk 0:02:58]} 3. Nc3 {[%clk 0:02:56]}  Bb4 {[%clk 0:02:58]} 4. Qc2 {[%clk 0:02:57]}  O-O {[%clk 0:02:57]} 5. e4 {[%clk 0:02:56]}  d5 {[%clk 0:02:57]} 6. cxd5 {[%clk 0:02:57]}  exd5 {[%clk 0:02:54]} 7. e5 {[%clk 0:02:58]}  Ne4 {[%clk 0:02:53]} 8. Bd3 {[%clk 0:02:59]}  c5 {[%clk 0:02:45]} 9. Ne2 {[%clk 0:02:59]}  Nc6 {[%clk 0:02:43]} 10. O-O {[%clk 0:02:54]}  cxd4 {[%clk 0:02:28]} 11. Nxd5 {[%clk 0:02:53]}  Qxd5 {[%clk 0:02:20]} 12. Bxe4 {[%clk 0:02:53]}  Qxe5 {[%clk 0:02:20]} 13. Bxh7+ {[%clk 0:02:54]}  Kh8 {[%clk 0:02:20]} 14. Bf4 {[%clk 0:02:54]}  Qh5 {[%clk 0:02:16]} 15. Be4 {[%clk 0:02:52]}  Bd7 {[%clk 0:01:54]} 16. Bxc6 {[%clk 0:02:35]}  Bxc6 {[%clk 0:01:49]} 17. Nxd4 {[%clk 0:02:35]}  Bxg2 {[%clk 0:01:42]} 18. Kxg2 {[%clk 0:02:17]}  Qg4+ {[%clk 0:01:42]} 19. Bg3 {[%clk 0:02:07]}  Qxd4 {[%clk 0:01:38]} 20. Rad1 {[%clk 0:01:57]}  Qg4 {[%clk 0:01:34]} 21. h3 {[%clk 0:01:21]}  Qe6 {[%clk 0:01:32]} 22. Rd4 {[%clk 0:01:11]}  Be7 {[%clk 0:01:15]} 23. Re4 {[%clk 0:00:54]}  Qg6 {[%clk 0:01:14]} 24. Rfe1 {[%clk 0:00:42]}  Bf6 {[%clk 0:01:08]} 25. Qb3 {[%clk 0:00:31]}  b6 {[%clk 0:01:06]} 26. R1e2 {[%clk 0:00:25]}  Rad8 {[%clk 0:01:06]} 27. Qf3 {[%clk 0:00:21]}  Rd7 {[%clk 0:00:58]} 28. b3 {[%clk 0:00:17]}  Kg8 {[%clk 0:00:54]} 29. Re8 {[%clk 0:00:17]}  Rxe8 {[%clk 0:00:53]} 30. Rxe8+ {[%clk 0:00:18]}  Kh7 {[%clk 0:00:53]} 31. Qa8 {[%clk 0:00:17]}  Qd3 {[%clk 0:00:52]} 32. Rh8+ {[%clk 0:00:14]}  Kg6 {[%clk 0:00:52]} 33. Qg8 {[%clk 0:00:11]}  Qd5+ {[%clk 0:00:42]} 34. Kh2 {[%clk 0:00:11]}  Kf5 {[%clk 0:00:39]} 35. Rh5+ {[%clk 0:00:09]}  g5 {[%clk 0:00:34]} 36. Qh7+ {[%clk 0:00:06]}  Ke6 {[%clk 0:00:32]} 37. h4 {[%clk 0:00:07]}  Rd8 {[%clk 0:00:26]} 38. hxg5 {[%clk 0:00:06]}  Rh8 {[%clk 0:00:22]} 39. Qxh8 {[%clk 0:00:02]}  Bxh8 {[%clk 0:00:22]} 40. Rxh8 {[%clk 0:00:01]}  Qxg5 {[%clk 0:00:22]} 41. Rh4 {[%clk 0:00:02]}  Qd2 {[%clk 0:00:18]} 0-1

[Event "January 9 Early 2024"]
[Site "https://www.chess.com"]
[Date "2024.01.11"]
[Round "7"]
[White "Zgadzaj, Rafal"]
[Black "Kurmangaliyeva, Liya"]
[Result "0-1"]
[Board "168"]
[TimeControl "180+1"]
[WhiteFideId "1113712"]
[BlackFideId "13725831"]
[WhiteElo "2338"]
[BlackElo "2529"]
[WhiteTeam "POL"]
[BlackTeam "KAZ"]
[WhiteClock "0:00:22"]
[BlackClock "0:00:25"]

1. e4 {[%clk 0:02:59]}  c5 {[%clk 0:02:58]} 2. Nf3 {[%clk 0:02:59]}  e6 {[%clk 0:02:58]} 3. c4 {[%clk 0:02:52]}  Nc6 {[%clk 0:02:56]} 4. Nc3 {[%clk 0:02:52]}  Nd4 {[%clk 0:02:54]} 5. Nxd4 {[%clk 0:02:50]}  cxd4 {[%clk 0:02:54]} 6. Ne2 {[%clk 0:02:50]}  Bc5 {[%clk 0:02:47]} 7. d3 {[%clk 0:02:48]}  Ne7 {[%clk 0:02:41]} 8. a3 {[%clk 0:02:45]}  a5 {[%clk 0:02:40]} 9. g3 {[%clk 0:02:44]}  O-O {[%clk 0:02:33]} 10. Bg2 {[%clk 0:02:44]}  f5 {[%clk 0:01:50]} 11. O-O {[%clk 0:02:38]}  d6 {[%clk 0:01:49]} 12. Bd2 {[%clk 0:02:37]}  a4 {[%clk 0:01:47]} 13. Bg5 {[%clk 0:02:34]}  h6 {[%clk 0:01:45]} 14. Bxe7 {[%clk 0:02:34]}  Qxe7 {[%clk 0:01:45]} 15. exf5 {[%clk 0:02:35]}  Rxf5 {[%clk 0:01:44]} 16. Qd2 {[%clk 0:02:30]}  Rf8 {[%clk 0:01:29]} 17. Rae1 {[%clk 0:02:29]}  Qf6 {[%clk 0:01:29]} 18. Nf4 {[%clk 0:02:25]}  Re8 {[%clk 0:01:06]} 19. Re2 {[%clk 0:02:08]}  Rb8 {[%clk 0:00:54]} 20. Rfe1 {[%clk 0:02:06]}  e5 {[%clk 0:00:54]} 21. Nd5 {[%clk 0:02:03]}  Qf7 {[%clk 0:00:54]} 22. f4 {[%clk 0:02:02]}  Bg4 {[%clk 0:00:51]} 23. Rf2 {[%clk 0:02:00]}  Qh5 {[%clk 0:00:49]} 24. fxe5 {[%clk 0:01:39]}  dxe5 {[%clk 0:00:42]} 25. Ref1 {[%clk 0:01:37]}  e4 {[%clk 0:00:37]} 26. Bxe4 {[%clk 0:01:30]}  Rxe4 {[%clk 0:00:33]} 27. dxe4 {[%clk 0:01:30]}  d3 {[%clk 0:00:33]} 28. Qxd3 {[%clk 0:01:14]}  Be2 {[%clk 0:00:33]} 29. Qd2 {[%clk 0:00:54]}  Bxf1 {[%clk 0:00:33]} 30. Nf4 {[%clk 0:00:41]}  Bxf2+ {[%clk 0:00:29]} 31. Kxf1 {[%clk 0:00:39]}  Qf7 {[%clk 0:00:26]} 32. Qxf2 {[%clk 0:00:35]}  Qxc4+ {[%clk 0:00:26]} 33. Kg2 {[%clk 0:00:32]}  Qxe4+ {[%clk 0:00:26]} 34. Kh3 {[%clk 0:00:28]}  Rf8 {[%clk 0:00:25]} 35. Qd2 {[%clk 0:00:22]}  Rf6 {[%clk 0:00:24]} 36. Qd8+ {[%clk 0:00:21]}  Kh7 {[%clk 0:00:24]} 37. Qd7 {[%clk 0:00:19]}  Qf5+ {[%clk 0:00:24]} 38. Qxf5+ {[%clk 0:00:19]}  Rxf5 {[%clk 0:00:25]} 39. Kg4 {[%clk 0:00:20]}  Rb5 {[%clk 0:00:25]} 40. Nd3 {[%clk 0:00:20]}  Rb3 {[%clk 0:00:25]} 41. Nc5 {[%clk 0:00:20]}  Rxb2 {[%clk 0:00:25]} 42. Nxa4 {[%clk 0:00:21]}  Ra2 {[%clk 0:00:24]} 43. Nc5 {[%clk 0:00:22]}  b5 {[%clk 0:00:24]} 44. Kf5 {[%clk 0:00:20]}  Rxa3 {[%clk 0:00:24]} 45. h4 {[%clk 0:00:21]}  b4 {[%clk 0:00:25]} 46. Ke5 {[%clk 0:00:21]}  b3 {[%clk 0:00:25]} 47. Nd3 {[%clk 0:00:21]}  Ra2 {[%clk 0:00:25]} 48. Kd4 {[%clk 0:00:22]}  b2 {[%clk 0:00:25]} 0-1

[Event "January 9 Early 2024"]
[Site "https://www.chess.com"]
[Date "2024.01.11"]
[Round "7"]
[White "Derjabin, Ilja"]
[Black "Skibbe, Willi"]
[Result "0-1"]
[Board "170"]
[TimeControl "180+1"]
[WhiteFideId "14104768"]
[BlackFideId "4682190"]
[WhiteElo "2508"]
[BlackElo "2375"]
[WhiteTeam "UKR"]
[BlackTeam "GER"]
[WhiteClock "0:00:03"]
[BlackClock "0:00:35"]

1. d4 {[%clk 0:03:00]}  e6 {[%clk 0:02:53]} 2. c4 {[%clk 0:03:00]}  d5 {[%clk 0:02:45]} 3. Nc3 {[%clk 0:03:00]}  c6 {[%clk 0:02:45]} 4. Nf3 {[%clk 0:02:57]}  Nf6 {[%clk 0:02:44]} 5. g3 {[%clk 0:02:57]}  Be7 {[%clk 0:02:38]} 6. Bg2 {[%clk 0:02:57]}  O-O {[%clk 0:02:39]} 7. O-O {[%clk 0:02:56]}  a5 {[%clk 0:02:40]} 8. c5 {[%clk 0:02:53]}  b6 {[%clk 0:02:32]} 9. cxb6 {[%clk 0:02:48]}  Qxb6 {[%clk 0:02:31]} 10. Na4 {[%clk 0:02:49]}  Qa7 {[%clk 0:02:28]} 11. Ne5 {[%clk 0:02:47]}  Nfd7 {[%clk 0:02:25]} 12. Nd3 {[%clk 0:02:42]}  Na6 {[%clk 0:02:22]} 13. Be3 {[%clk 0:02:31]}  Rb8 {[%clk 0:02:05]} 14. Rc1 {[%clk 0:02:28]}  Nb4 {[%clk 0:02:05]} 15. Nxb4 {[%clk 0:02:24]}  axb4 {[%clk 0:02:04]} 16. Rxc6 {[%clk 0:02:18]}  Ba6 {[%clk 0:02:00]} 17. b3 {[%clk 0:02:15]}  Bb5 {[%clk 0:01:54]} 18. Rc1 {[%clk 0:02:09]}  Qa6 {[%clk 0:01:52]} 19. Re1 {[%clk 0:01:49]}  Rfc8 {[%clk 0:01:51]} 20. Bf4 {[%clk 0:01:30]}  Ra8 {[%clk 0:01:43]} 21. Rxc8+ {[%clk 0:01:20]}  Rxc8 {[%clk 0:01:42]} 22. e4 {[%clk 0:01:21]}  dxe4 {[%clk 0:01:25]} 23. Bxe4 {[%clk 0:01:20]}  Nf6 {[%clk 0:01:25]} 24. Bf3 {[%clk 0:01:09]}  Bxa4 {[%clk 0:01:23]} 25. bxa4 {[%clk 0:01:09]}  Rc3 {[%clk 0:01:21]} 26. d5 {[%clk 0:01:03]}  Qd3 {[%clk 0:01:08]} 27. Qxd3 {[%clk 0:01:00]}  Rxd3 {[%clk 0:01:07]} 28. Be2 {[%clk 0:00:28]}  Rxd5 {[%clk 0:01:07]} 29. Rc1 {[%clk 0:00:25]}  g5 {[%clk 0:01:02]} 30. Rc8+ {[%clk 0:00:22]}  Kg7 {[%clk 0:01:02]} 31. Be3 {[%clk 0:00:22]}  Ne4 {[%clk 0:01:02]} 32. Bf3 {[%clk 0:00:17]}  Nd6 {[%clk 0:00:54]} 33. Bxd5 {[%clk 0:00:12]}  Nxc8 {[%clk 0:00:54]} 34. Bc6 {[%clk 0:00:11]}  Bd8 {[%clk 0:00:52]} 35. Bc5 {[%clk 0:00:10]}  Be7 {[%clk 0:00:49]} 36. Bd4+ {[%clk 0:00:08]}  Bf6 {[%clk 0:00:48]} 37. Be3 {[%clk 0:00:05]}  Ne7 {[%clk 0:00:46]} 38. Bb7 {[%clk 0:00:04]}  Nf5 {[%clk 0:00:42]} 39. Bc5 {[%clk 0:00:03]}  Be7 {[%clk 0:00:41]} 40. Bb6 {[%clk 0:00:03]}  Nd6 {[%clk 0:00:41]} 41. Bc6 {[%clk 0:00:01]}  Nc4 {[%clk 0:00:40]} 42. Bc7 {[%clk 0:00:02]}  Bd6 {[%clk 0:00:32]} 43. Bxd6 {[%clk 0:00:02]}  Nxd6 {[%clk 0:00:33]} 44. a5 {[%clk 0:00:02]}  Nc8 {[%clk 0:00:34]} 45. Bb7 {[%clk 0:00:02]}  Na7 {[%clk 0:00:35]} 46. a6 {[%clk 0:00:03]}  Kf6 {[%clk 0:00:35]} 47. Kf1 {[%clk 0:00:03]}  Ke5 {[%clk 0:00:35]} 48. Ke2 {[%clk 0:00:04]}  Kd4 {[%clk 0:00:35]} 49. g4 {[%clk 0:00:03]}  h6 {[%clk 0:00:35]} 50. Kf3 {[%clk 0:00:03]}  f5 {[%clk 0:00:35]} 0-1